Cogmind - Beta 15 @@@ ROGUE MODE // 2025.05.17 @ 13:47:05 Player: amhuman Result: Destroyed by H-66 Slayer with Gauss Rifle Performance ------------- Evolutions (5) 2500 Regions Visited (5) 1000 Robots Destroyed (42) 210 Value Destroyed (1292) 1292 Prototype IDs (22) 440 Alien Tech Used (0) 0 Bonus (1226) 1226 TOTAL SCORE: 6668 Bonus ------- Follower Combat Kills 465 Registered with UFD 300 Met Optimus in HQ 500 Friendly Fire -39 Cogmind --------- Core Integrity 0/1000 Matter 289/300 Energy 80/100 System Corruption 0% Temperature Cool (0) Movement Core (100) Ox1 Location -5/Factory Parts ------- > --- POWER (1) -------- (None) > --- PROPULSION (6) --- (None) > --- UTILITY (7) ------ Improved Signal Interpreter Improved Targeting Computer Core Analyzer A0-MCA's Component Scanner Drone Bay (1/2) > --- WEAPON (3) ------- (None) > --- INVENTORY (5) ---- Scrap Suit Small Matter Pod (50) Datajack Peak State ------------ > --- POWER ------------ Nuclear Core > --- PROPULSION ------- Carbon-fiber Leg Carbon-fiber Leg Carbon-fiber Leg Enhanced Flexi-carbon Leg Wheel Compact Wheel > --- UTILITY ---------- Huge Storage Unit IFF Parser Improved Targeting Computer Hacking Suite Makeshift Hacking Suite System Shield A0-MCA's Component Scanner > --- WEAPON ----------- Heavy Proton Cannon Mass Driver Grenade Launcher > --- INVENTORY -------- Light Nuclear Core Subdweller Monowheel Makeshift Flight Unit Scrap Suit Advanced Cooling System Large Storage Unit Small Matter Pod Compact Matter Pod Improved Signal Interpreter Core Analyzer Matter Filter Layered Heavy Armor Plating Scrapoid Pod Overtuned Pulse Rifle Long-range Proton Cannon Heavy Proton Cannon Heavy Proton Cannon Grenade Launcher Datajack Greatsword Makeshift Spear [Rating: 72] Favorites ----------- Power Light Ion Engine Engine Light Ion Engine Power Core Nuclear Core Propulsion Aluminum Leg Treads Light Treads Leg Aluminum Leg Wheel Compact Wheel Utility Large Storage Unit Device Terrain Scanner Storage Large Storage Unit Processor A0-MCA's Component Scanner Hackware System Shield Protection Layered Heavy Armor Plating Weapon Grenade Launcher Energy Gun Medium Laser Energy Cannon Heavy Proton Cannon Ballistic Gun Assault Rifle Ballistic Cannon Battle Cannon Launcher Grenade Launcher Special Weapon Mining Laser Slashing Weapon Greatsword Piercing Weapon Makeshift Spear Special Melee Weapon Datajack Build | -11 -10 -10 -7 -7 -5 ------- Run | Yrd Mat Sub Rec Scr Fac Slots Evolved 10 | . . . . . 10 Power . | . . . . . . Propulsion 4 | . . . . . 4 Utility 5 | . . . . . 5 Weapon 1 | . . . . . 1 Parts Attached 67 | 6 11 7 . 4 39 Power 5 | 2 1 . . . 2 Engine 3 | 2 1 . . . . Core 2 | . . . . . 2 Reactor . | . . . . . . Propulsion 17 | 2 2 2 . . 11 Treads 2 | 2 . . . . . Leg 7 | . 2 . . . 5 Wheel 8 | . . 2 . . 6 Hover . | . . . . . . Flight . | . . . . . . Utility 22 | . 4 1 . 3 14 Device 10 | . 2 1 . 1 6 Storage 3 | . 2 . . 1 . Processor 4 | . . . . 1 3 Hackware 4 | . . . . . 4 Protection 1 | . . . . . 1 Artifact . | . . . . . . Weapon 23 | 2 4 4 . 1 12 Energy Gun 5 | 2 1 . . . 2 Energy Cannon 4 | . . . . . 4 Ballistic Gun 3 | . 2 . . . 1 Ballistic Cannon 4 | . . 1 . . 3 Launcher 3 | . 1 2 . . . Special Weapon 1 | . . 1 . . . Impact Weapon . | . . . . . . Slashing Weapon 1 | . . . . . 1 Piercing Weapon 1 | . . . . . 1 Special Melee Weapon 1 | . . . . 1 . Unidentified Prototypes . | . . . . . . Parts Lost 42 | . 3 3 . . 36 Power 4 | . 1 . . . 3 Propulsion 15 | . 1 2 . . 12 Utility 7 | . . . . . 7 Weapon 16 | . 1 1 . . 14 Highest Loss Streak 22 | . 1 3 . . 22 To Critical Strikes 2 | . . . . . 2 Average Backups 14 | 1 10 14 13 16 17 Power 1 | . 1 1 1 1 1 Propulsion 1 | . . 2 1 1 1 Utility 4 | . 2 3 3 5 7 Weapon 6 | . 5 7 7 7 6 Tool/Special . | . . . . . . Unused Backups 41 | . 5 4 1 16 15 Power 3 | . . . . 2 1 Propulsion 5 | . . . . 2 3 Utility 18 | . 3 1 . 6 8 Weapon 15 | . 2 3 1 6 3 Tool/Special . | . . . . . . Average Slot Usage (%) 92 | . 95 99 100 95 66 Engine 11 | . 12 14 14 14 1 Treads 2 | . 20 . . . . Leg 10 | . 7 23 . . 8 Wheel 12 | . . 4 28 28 6 Device 9 | . 13 14 14 4 3 Storage 11 | . 13 14 14 12 4 Processor 3 | . . . . 5 11 Hackware 1 | . . . . . 11 Energy Gun 1 | . 9 . . . . Ballistic Gun 3 | . 14 3 . . . Ballistic Cannon 7 | . . 4 14 13 6 Launcher 10 | . 3 13 14 14 1 Special Weapon 2 | . . 6 . . . Peak Build Rating 72 | 5 8 10 11 24 72 Average Rating 17 | 4 7 8 10 16 47 On Entrance 9 | . 5 8 10 11 22 Naked Turns . | . . . . . . Heaviest Build 112 | 9 31 30 30 89 112 Greatest Support 73 | 40 40 26 26 26 73 Greatest Overweight (x) 34 | . 2 1 1 3 34 Average Overweight (x) 1 | . . 1 1 2 3 Largest Inventory Capacity 25 | 5 15 15 15 25 25 Average Capacity 17 | 5 12 15 15 20 23 Most Carried 25 | 3 15 15 15 25 25 Average Carried 16 | 1 10 14 14 19 21 Final Capacity 25 | 5 15 15 15 25 5 Final Carried 23 | 3 15 15 15 23 4 Class Distribution -------------------- 84% | Mutant 6% | Hacker-Mutant 5% | Hacker-Bomber Dominant Class ---------------- Mutant | -10/Materials Mutant | -10/Subcaves Mutant | -7/Recycling Mutant | -7/Scraptown Hacker-Mutant | -5/Factory Resources | -11 -10 -10 -7 -7 -5 ----------- Run | Yrd Mat Sub Rec Scr Fac Matter Collected 2126 | 196 345 389 65 156 975 Remotely . | . . . . . . Salvage Created 1113 | . 368 262 . . 483 Parts 60 | . 26 20 . . 14 Haulers Intercepted 2 | . 1 . . . 1 Recyclers Shooed . | . . . . . . Parts Field Recycled . | . . . . . . Retrieved Matter . | . . . . . . Parts Self-Destructed 16 | . . 16 . . . Prevented . | . . . . . . Kills | -11 -10 -10 -7 -7 -5 ------- Run | Yrd Mat Sub Rec Scr Fac Combat Hostiles Destroyed 34 | . 13 14 . . 7 Guns 11 | . 11 . . . . Cannons 6 | . . 3 . . 3 AOE 17 | . 2 11 . . 4 Classes Destroyed 13 | . 5 2 . . 6 Worker 1 | . . . . . 1 Builder 2 | . 1 . . . 1 Tunneler 1 | . . . . . 1 Hauler 2 | . 1 . . . 1 Recycler 1 | . . . . . 1 Operator 1 | . 1 . . . . Swarmer 10 | . 5 5 . . . Grunt 12 | . 8 1 . . 3 Sentry 2 | . . 1 . . 1 Specialist 1 | . . . . . 1 Hunter 1 | . . . . . 1 Programmer 1 | . . . . . 1 Subdweller 7 | . . 7 . . . Best Kill Streak 6 | . 6 4 . . 4 Combat Bots Only 5 | . 5 4 . . 2 Max Kills in Single Turn 4 | . 1 4 . . 4 Gunslinging . | . . . . . . Exploded 4 | . 1 4 . . 2 Melee . | . . . . . . Uniques/NPCs Destroyed . | . . . . . . Combat | -11 -10 -10 -7 -7 -5 -------- Run | Yrd Mat Sub Rec Scr Fac Hostile Shots Fired 486 | . 97 49 . . 340 Missed 139 | . 33 20 . . 86 Hits 347 | . 64 29 . . 254 Projectile 347 | . 64 29 . . 254 Critical Strikes 8 | . . . . . 8 Damage Taken 6158 | . 671 500 . . 4987 Core 1219 | . 103 101 . . 1015 Absorbed by Shields . | . . . . . . Core Remaining (%) 59 | 100 . . . 18 . Volleys Fired 159 | . 44 67 2 . 46 Largest 3 | . 2 2 1 . 3 Hottest 158 | . 100 100 33 . 158 Shots Fired 272 | . 85 86 2 . 99 Gun 87 | . 73 3 . . 11 Cannon 115 | . . 32 2 . 81 Launcher 38 | . 12 19 . . 7 Special 32 | . . 32 . . . Kinetic 128 | . 22 35 2 . 69 Thermal 76 | . 43 32 . . 1 Explosive 38 | . 12 19 . . 7 Electromagnetic 30 | . 8 . . . 22 Robot Hit Streak 17 | . 15 7 . . 17 Robot Miss Streak 6 | . 3 1 . . 6 Penetration Max . | . . . . . . Secondary Targets 2 | . 2 . . . . Max Gunslinging Chain 1 | . 1 . . . . Shots Hit Robots 148 | . 50 28 . 1 69 Core Hits 77 | . 27 21 . . 29 Critical Kills . | . . . . . . Critical Parts Destroyed . | . . . . . . Critical Strikes 5 | . 2 1 . . 2 Burn 2 | . 2 . . . . Blast 2 | . . 1 . . 1 Impale 1 | . . . . . 1 Melee Attacks 14 | . . . . 1 13 Impact . | . . . . . . Slashing . | . . . . . . Piercing 13 | . . . . . 13 Sneak Attacks 2 | . . . . 1 1 Combat Hostiles . | . . . . . . Follow-up Attacks . | . . . . . . Damage Inflicted 4338 | . 1134 1158 . . 2046 Guns 758 | . 605 14 . . 139 Cannons 1646 | . . 235 . . 1411 Explosions 1890 | . 529 909 . . 452 Melee 44 | . . . . . 44 Ramming . | . . . . . . Kinetic 1668 | . 191 249 . . 1228 Thermal 611 | . 439 . . . 172 Explosive 1637 | . 427 909 . . 301 Electromagnetic 378 | . 77 . . . 301 Impact . | . . . . . . Slashing . | . . . . . . Piercing 44 | . . . . . 44 Highest Corruption . | . . . . . . Average Corruption . | . . . . . . Corruption Purged . | . . . . . . Corruption Blocked . | . . . . . . Overload Shots . | . . . . . . Overflow Damage 111 | . 14 1 . . 96 Projectiles . | . . . . . . Explosions 53 | . 14 1 . . 38 Melee 58 | . . . . . 58 Knockbacks 9 | . . 2 . . 7 Impact . | . . . . . . Kinetic 9 | . . 2 . . 7 Secondary . | . . . . . . Self-Inflicted Damage 45 | . 8 10 . . 27 Shots 5 | . 1 2 . . 2 Rammed . | . . . . . . Targets Rammed . | . . . . . . Kicked . | . . . . . . Crushed . | . . . . . . Highest Temperature 207 | . 207 . . . 135 Average Temperature 47 | . 64 . . . 30 Received Heat Transfer 1038 | . 252 102 . . 684 Siege Activations . | . . . . . . Martial Activations . | . . . . . . Shielding Activations . | . . . . . . Robots Disrupted . | . . . . . . Combat Hostiles . | . . . . . . Robots Corrupted . | . . . . . . Combat Hostiles . | . . . . . . Parts Fried . | . . . . . . Impact Corruptions . | . . . . . . Robots Melted . | . . . . . . Combat Hostiles . | . . . . . . Parts Melted 1 | . 1 . . . . Heat Transferred 1447 | . 1297 . . . 150 Parts Sabotaged . | . . . . . . Parts Stolen . | . . . . . . Parts Stripped . | . . . . . . Power Chain Reactions 2 | . 1 . . . 1 Alert | -11 -10 -10 -7 -7 -5 ------- Run | Yrd Mat Sub Rec Scr Fac Maximum Alert Level 1 | . . . . . 1 Low Security (%) 95 | 100 100 . 100 . 89 Level 1 4 | . . . . . 10 Level 2 . | . . . . . . Level 3 . | . . . . . . Level 4 . | . . . . . . Level 5 . | . . . . . . High Security . | . . . . . . Max Security . | . . . . . . Peak Influence 311 | . 154 . 58 . 311 Initial 7 | . . . 7 . . Average 68 | . 75 . 16 . 85 Influence Increases 1822 | . 464 225 131 . 1002 Destroy 0b10 Robot/C 800 | . 260 140 . . 400 Destroy 0b10 Robot/NC 70 | . 15 . . . 55 Destroy Leader 176 | . 52 10 . . 114 Allied During Kill 41 | . . . . . 41 Successful Hack 40 | . 16 . 11 . 13 Select Force Hacks 180 | . 60 . 120 . . Disable Machine 105 | . 15 . . . 90 Destroy Structure 200 | . 46 . . . 154 Partial Spotted 15 | . . . . . 15 Lose Combat Pursuer 195 | . . 75 . . 120 Influence Decreases 1674 | . 441 233 146 . 854 Entered New Map 20 | . . 12 8 . . Time Decay 1110 | . 411 221 138 . 340 Lost Part 364 | . 30 . . . 334 Lost Ally 30 | . . . . . 30 Purge Threat 150 | . . . . . 150 Squads Dispatched 11 | . 4 . . . 7 Investigation 3 | . 2 . . . 1 Extermination 1 | . . . . . 1 Reinforcement 7 | . 2 . . . 5 Assault . | . . . . . . Garrison . | . . . . . . Intercept . | . . . . . . Searches Triggered . | . . . . . . Construction Impeded 2 | . . . . . 2 Haulers Reinforced 1 | . . . . . 1 Active Scanning Responses . | . . . . . . Cargo Convoy Interrupts 1 | . . . . . 1 Stealth | -11 -10 -10 -7 -7 -5 --------- Run | Yrd Mat Sub Rec Scr Fac Distress Signals 4 | . 3 . . . 1 Communications Jammed . | . . . . . . Distress Signals . | . . . . . . Times Spotted 75 | . 23 16 . . 36 Peak Tracking Total 9 | . 6 6 . . 9 Tactical Retreats 6 | . . 3 . . 3 Traps | -11 -10 -10 -7 -7 -5 ------- Run | Yrd Mat Sub Rec Scr Fac Traps Triggered 1 | . 1 . . . . Indirectly . | . . . . . . Trap Hack Attempts . | . . . . . . Triggered . | . . . . . . Disarmed . | . . . . . . Reprogrammed 1 | . . . . . 1 Reused . | . . . . . . Traps Extracted . | . . . . . . Installed 1 | . . . . 1 . Triggered . | . . . . . . Machines | -11 -10 -10 -7 -7 -5 ---------- Run | Yrd Mat Sub Rec Scr Fac Machines Disabled 7 | . 1 . . . 6 Max in Single Turn 1 | . 1 . . . 1 Garrison Access 1 | . . . . . 1 Machines Repaired . | . . . . . . Machines Dismantled . | . . . . . . Machines Sabotaged . | . . . . . . Overloaded Fab Kills . | . . . . . . Hacking | -11 -10 -10 -7 -7 -5 --------- Run | Yrd Mat Sub Rec Scr Fac Machines Accessed 24 | . 8 1 7 2 6 Terminals 12 | . 6 . 2 . 4 Fabricators . | . . . . . . Repair Stations . | . . . . . . Recycling Units 7 | . 2 . 4 . 1 Scanalyzers . | . . . . . . Garrison Access 1 | . . . . . 1 Total Hacks 56 | . 19 5 10 5 17 Successful 42 | . 10 5 9 5 13 Failed 14 | . 9 . 1 . 4 Catastrophic 2 | . . . . . 2 Database Lockouts . | . . . . . . Manual 45 | . 25 . 8 . 12 Terminals 35 | . 17 . 3 . 15 Fabricators . | . . . . . . Repair Stations . | . . . . . . Recycling Units 7 | . 2 . 4 . 1 Scanalyzers . | . . . . . . Garrison Access 1 | . . . . . 1 Terminal Hacks 25 | . 3 5 4 5 8 Record 13 | . . 5 3 4 1 Robot Analysis 2 | . 2 . . . . Branch Access Points 1 | . . . . . 1 Emergency Access Points 1 | . . . . . 1 Terminal Index 3 | . 1 . 1 . 1 Alert Level 1 | . . . . . 1 Unreport Threat 1 | . . . . . 1 Reprogram Traps 1 | . . . . . 1 Zone Layout 1 | . . . . . 1 Proto ID Catalog 1 | . . . . 1 . Fabricator Hacks . | . . . . . . Repair Station Hacks . | . . . . . . Recycling Unit Hacks . | . . . . . . Scanalyzer . | . . . . . . Garrison Access Hacks 1 | . . . . . 1 Seal Access 1 | . . . . . 1 Unauthorized Hacks 16 | . 7 . 5 . 4 Terminals 9 | . 5 . 1 . 3 Botnet 9 | . 5 . 1 . 3 Fabricators . | . . . . . . Repair Stations . | . . . . . . Recycling Units 7 | . 2 . 4 . 1 Tunnel 6 | . 2 . 4 . . Fedlink 1 | . . . . . 1 Scanalyzers . | . . . . . . Garrison Access . | . . . . . . Data Cores Recovered . | . . . . . . Used . | . . . . . . Hacking Detections 11 | . 5 . 2 . 4 Full Trace Events . | . . . . . . Feedback Events . | . . . . . . Feedback Blocked . | . . . . . . Robot Schematics Acquired . | . . . . . . Robots Built . | . . . . . . Authchips . | . . . . . . Time . | . . . . . . Total Robot Build Rating . | . . . . . . Part Schematics Acquired . | . . . . . . Parts Built . | . . . . . . Authchips . | . . . . . . Time . | . . . . . . Total Part Build Rating . | . . . . . . Parts Repaired . | . . . . . . Time . | . . . . . . Parts Recycled . | . . . . . . Recycled Matter . | . . . . . . Retrieved Matter . | . . . . . . Retrieved Components . | . . . . . . Parts Scanalyzed . | . . . . . . Part Schematics Acquired . | . . . . . . Parts Damaged . | . . . . . . Bothacking | -11 -10 -10 -7 -7 -5 ------------ Run | Yrd Mat Sub Rec Scr Fac Used RIF Installer . | . . . . . . Robots Hacked 1 | . . . . 1 . Non-combat . | . . . . . . Combat 1 | . . . . 1 . Robot Hacks Applied 1 | . . . . 1 . parse_system 1 | . . . . 1 . Relay Couplers Released . | . . . . . . Fabnet Peak Effective % . | . . . . . . Robots Rewired . | . . . . . . Allies Hacked . | . . . . . . Hacks Repelled . | . . . . . . Allies | -11 -10 -10 -7 -7 -5 -------- Run | Yrd Mat Sub Rec Scr Fac Total Allies 1 | . . . . 1 . Largest Group 1 | . . . . 1 1 Highest-Rated Group 63 | . . . . 63 63 Highest-Rated Ally 63 | . . . . 63 63 Total Orders 2 | . . . . . 2 EXPLORE 2 | . . . . . 2 Ally Attacks 82 | . . . . . 82 Total Damage 2755 | . . . . . 2755 Kills 19 | . . . . . 19 Allies Corrupted . | . . . . . . Allies Melted . | . . . . . . Intel | -11 -10 -10 -7 -7 -5 ------- Run | Yrd Mat Sub Rec Scr Fac Active Infowar (turns) 5130 | . 913 2656 466 533 562 Sensors 2310 | . . 963 466 533 348 IFF 214 | . . . . . 214 Terrain 2606 | . 913 1693 . . . Robot Analysis Total 2 | . 2 . . . . Derelict Logs Recovered 4 | . . 1 . 3 . Drone Launches 3 | . . . . . 3 Drone Recoveries 2 | . . . . . 2 Exploration | -11 -10 -10 -7 -7 -5 ------------- Run | Yrd Mat Sub Rec Scr Fac Turns Passed 7761 | 77 1104 2656 466 2191 1267 Spaces Moved 4689 | 47 509 1387 425 1726 595 Core 103 | 7 . . . . 96 Treads 458 | 40 418 . . . . Legs 1202 | . 91 1070 . . 41 Wheels 2926 | . . 317 425 1726 458 Hover . | . . . . . . Flight . | . . . . . . Fastest Speed 50 | 50 160 105 105 90 50 Average Speed 146 | 143 180 170 105 121 166 Slowest Speed 1750 | 160 260 190 105 135 1750 Overloaded Moves . | . . . . . . Propulsion Burnouts . | . . . . . . Robots Hopped . | . . . . . . Potential Cave-ins 2 | . 2 . . . . Cave-ins Triggered . | . . . . . . Exploration Rate (%) 55 | 4 63 81 79 82 23 Regions Visited 5 Branch Regions 3 Pre-discovered Areas 7 | . 2 . 4 1 . Known Exits Taken . | . . . . . . Unknown Exits Taken 5 | 1 1 1 1 1 . Scrap Searched 4 | . . . . 4 . Spaces Dug 22 | . 15 1 . . 6 Terrain Destroyed 217 | . 54 123 . . 40 Melee 6 | . . . . . 6 Projectile 14 | . . 2 . . 12 AOE 197 | . 54 121 . . 22 Terrain Rammed . | . . . . . . Walls Destroyed . | . . . . . . Machines Disabled . | . . . . . . Actions | -11 -10 -10 -7 -7 -5 --------- Run | Yrd Mat Sub Rec Scr Fac Total 5235 | 54 614 1526 444 1832 765 Wait 173 | . 20 46 11 47 49 Move 4684 | 46 508 1386 424 1725 595 Hop . | . . . . . . Pick Up 83 | 2 21 9 3 34 14 Fast Attach 25 | 5 5 . . 1 14 Attach 30 | . 2 3 . 2 23 Detach . | . . . . . . Swap 19 | 1 4 8 . 1 5 Drop 47 | . 10 7 4 20 6 Fire 159 | . 44 67 2 . 46 Melee 14 | . . . . 1 13 Ram . | . . . . . . Kick . | . . . . . . Crush . | . . . . . . Escape Stasis . | . . . . . . Rewire . | . . . . . . Trap 1 | . . . . 1 . Miscellaneous . | . . . . . . Route ------- -11/Scrapyard -10/Materials (discovered 5 exits: [*Mat x3] / [*Min] / *Sub) -10/Subcaves (discovered 2 exits: [*Mat] / *Rec) -7/Recycling (discovered 2 exits: *Fac / *Scr) -7/Scraptown -5/Factory (discovered 4 exits: *Fac x2 / Upp x2) History --------- Turn | Location | Event 4 | -11/Scrapyard | Discovered new exit (range 15) 78 | -11/Scrapyard | Entered Materials 309 | -10/Materials | Build established: Mutant 341 | -10/Materials | Discovered new exit (range 15) 387 | -10/Materials | Discovered new exit (range 9) 458 | -10/Materials | Discovered new exit (range 15) 678 | -10/Materials | Derelicts attacked the area 730 | -10/Materials | Discovered new exit (range 5) 1023 | -10/Materials | Discovered new exit (range 5) 1182 | -10/Materials | Entered Subcaves 1183 | -10/Subcaves | Approached by a straggling Scientist 1217 | -10/Subcaves | Core integrity fell below 50% 2843 | -10/Subcaves | Learned Materials emergency access door positions 2999 | -10/Subcaves | A swath of the cavern ceiling suddenly collapsed 3173 | -10/Subcaves | Core integrity fell below 20% 3265 | -10/Subcaves | Discovered new exit (range 11) 3312 | -10/Subcaves | Visited Clippyterm 3318 | -10/Subcaves | Learned Factory fabricator intel 3318 | -10/Subcaves | Learned Factory trap positions 3445 | -10/Subcaves | Lost 3 parts (2n1w) 3682 | -10/Subcaves | Shifting Twisted Machinery released Sub. Monowheel 3682 | -10/Subcaves | Shifting Twisted Machinery released Sub. Monowheel 3835 | -10/Subcaves | Discovered new exit (range 3) 3838 | -10/Subcaves | Entered Recycling 4112 | -7/Recycling | Discovered new exit (range 5) 4274 | -7/Recycling | Scanned before Scraplab entrance 4290 | -7/Recycling | Entered Scraplab 4303 | -7/Recycling | Discovered new exit (range 2) 4304 | -7/Recycling | Entered Scraptown 4465 | -7/Scraptown | Scanned Subdweller tech in exchange for log data 4467 | -7/Scraptown | Learned location of 1 exit from Factory 4468 | -7/Scraptown | Learned location of 2 exits from Upper Caves 4484 | -7/Scraptown | Heard Great Nut preacher, LISTEN AND RECITE! 4498 | -7/Scraptown | Visited Spacefarers 4551 | -7/Scraptown | Visited The Evicted 4558 | -7/Scraptown | Visited Red Mages 4577 | -7/Scraptown | Visited SPCMW 4734 | -7/Scraptown | Visited Cyclists 4754 | -7/Scraptown | Visited Symbiants 4782 | -7/Scraptown | Visited UFD Registry 4782 | -7/Scraptown | Registered with UFD as "Electrobox" 4983 | -7/Scraptown | Warned about trapping Scraptown 5082 | -7/Scraptown | Visited Observation Area 5136 | -7/Scraptown | Visited DA-N13 Charitable Foundation 5148 | -7/Scraptown | Found DCF Scrap (28 items) 5196 | -7/Scraptown | Visited Botcube Research 5219 | -7/Scraptown | Found Botcube 5280 | -7/Scraptown | Visited LU-1G1's Boring Crew 5319 | -7/Scraptown | Visited Scrapoid Pod Storage 5325 | -7/Scraptown | Found Scrapoid Pod 5348 | -7/Scraptown | Visited Scrap Suit Storage 5355 | -7/Scraptown | Found Scrap Suit 5378 | -7/Scraptown | Visited A0-MCA Data Center 5387 | -7/Scraptown | Given a B- rating by A0-MCA 5392 | -7/Scraptown | Found A0-MCA's Component Scanner 5426 | -7/Scraptown | Visited Science Guys 5473 | -7/Scraptown | Visited Abandonware Association 5493 | -7/Scraptown | Learned abandonware demo "ERRANTS.EXE" 5493 | -7/Scraptown | Learned abandonware demo "TRNCOAT.EXE" 5561 | -7/Scraptown | Received an X-ray algorithm 5632 | -7/Scraptown | Visited Supply Room 5657 | -7/Scraptown | Found Scrap Suit 6275 | -7/Scraptown | Botcube activated 6297 | -7/Scraptown | Botcube completed mutation into treaded form, armed with 2 cannons. 6413 | -7/Scraptown | Met Optimus 6413 | -7/Scraptown | Accepted into 0bPrime 6481 | -7/Scraptown | Discovered new exit (range 3) 6495 | -7/Scraptown | Entered Factory 6495 | -5/Factory | Accompanied by 1 ally 6495 | -5/Factory | Evolved 10 slots: Propulsion x4, Utility x5, Weapon x1 6496 | -5/Factory | Identified exit to Factory 6497 | -5/Factory | Loaded intel: 93 trap records 6498 | -5/Factory | Loaded intel: 6 fabricator locations 6705 | -5/Factory | Loaded intel: 8 recycling unit locations 6873 | -5/Factory | Ran an X-ray algorithm 7009 | -5/Factory | Lost 6 parts (1p2n2u1w) 7081 | -5/Factory | Identified exit to Upper Caves 7234 | -5/Factory | Cargo convoy interrupted 7261 | -5/Factory | Build established: Hacker-Mutant 7302 | -5/Factory | Lost 5 allies 7307 | -5/Factory | Discovered exit to Factory (range 15) 7538 | -5/Factory | Core integrity fell below 50% 7586 | -5/Factory | Lost 22 parts (2p7n4u9w) 7677 | -5/Factory | Core integrity fell below 20% 7710 | -5/Factory | Lost 4 parts (2n1u1w) 7762 | -5/Factory | Destroyed by H-66 Slayer with Gauss Rifle Last Messages --------------- 07682_ Dropped Huge Storage Unit. 07683_ G-50 Soldier destroyed. 07684_ Extracted 36 matter. 07685_ U-05 Engineer builds a Wall. 07685_ K-01 Serf collects debris. 07686_ Penetrated by Slug. 07686_ Slug penetrates Wall. 07694_ Acquired Drone Bay. 07697_ Drone released from Drone Bay. 07705_ K-01 Serf cleans the Nuclear Reactor. 07706_ Drone retrieved by Drone Bay (no repairs). 07730_ Acquired 9 matter. 07739_ Drone released from Drone Bay. 07749_ Slug penetrates Drone. 07752_ Slug penetrates Wall. 07752_ Drone destroyed. 07755_ Drone retrieved by Drone Bay (no repairs). 07762_ Penetrated by Slug. Map ----- +----------------------------------------------------+ | ??????????????????????????????????????????????? | | ??????????????????????????????????????????????? | | ??????????????????????????????????????????????? | | ??????????????????????????????????????????????? | | ??????????????????????????????????????????????? | | ????????????????????????????????????????????????## | | ?????????????????????????????????????????????????? | | ?????????????????????????????????????????????????? | | ?????????????????????????????????????????????????? | | ?????????????????????????????????????????????????? | | ??????????????????????? u ???????????????????????? | | ????????????????????? ???????????????????????? | | ????????????????????# ???????????????????????? | | ????????????????????# ???????????????????????? | | ????????????????????# ???????????????????????? | | ????????????????????# ???????????????????????? | | ????????????????????# ???????????????????????? | | ????????????????????# #??????????????????????? | | ????????????????????# #??????????????????????? | | ##################### #??????????????????????? | | h #??????????????????????? | | #??????????????????????? | | #????????????########### | | % #??######????# | | #?? "????# | | ##################### @#? ?????# | | #????????????????# #?" " " "????# """ | | "" #????????????????# # " " " ????# """"" | | "" ##############???# # " " " ???# """"" | | "" # = #???# + " " " ???# | | "" # #???# # " " " ???# """ | | # """"""" #???# # " " " ????# """"" " | | ##+# """"""" #???# #?" " " ????# """"" | | # """"""" #???# #?" " " ?????# " | | ## # """"""" #???# #?? " " ?????# | | ?# # #???# #?? ?????########### | | ?# # """"""" #???# #???####???????????????? | | ?# # """"""" #???# ##############?????????? | | ?# # """"""" #???# # #?????????? | | ?# + """"""" #???# # #??????#### | | ?# # #???# # #??????+ | | ## #######+########## # #??????# ^ | | # """ """ #??##### | | [ # """ """ #??# | | % + """ """ #??# ^^ | | # #??# ! | | % ] # """ """ #??# ! | | #####+########## ] # """ """ #??# ! | | # ! #?#] # """ """ ??## | | # #?#! # #?#" | +----------------------------------------------------+ Best States ------------- Heat Dissipation 71 Energy Generation 14 Energy Capacity 250 Matter Stores 300 Matter Capacity 300 Sight Range 16 Robot Scan Range 15 Terrain Scan Range 14 Terrain Scan Density 10 Armor Coverage 600 Evasion (%) 50 Targeting Accuracy 6 Recoil Reduction 2 Matter Filtering 30 Offensive Hacking 21 Defensive Hacking 10 Item Schematics ----------------- None Robot Schematics ------------------ None Fabricated ------------ Nothing Repaired ---------- Nothing Alien Tech Used ----------------- None Achievements -------------- None Challenges ------------ None Game ------ Seed ShadingBackupReplicator Manual? 0 Play Time 01:40:01 Cumulative 198.8 hours Start 2025.05.17 @ 11:09:23 End 2025.05.17 @ 13:47:05 Sessions 5 Manual Loads 0 Difficulty Rogue Special Mode None Game No. 194 Rogue 194 Adventurer 0 Explorer 0 Win Type - Total 1 Types 1/0/0/0/0/0/0/0/0/0 Lore% 70 Gallery% 56 Achievement% 48 Wizard Run 0 Options --------- Layout 1 ASCII 0 Keyboard 0 Movement Mouse Keybinds 0 Fullscreen 1 Font 24/Smallcaps Map View 50x35 Zoom Use 0% Tactical HUD 1 Map Filters NONE Filters NONE Steam 1 RUN: 503db3f6-ecf6-44d0-b46c-6326cefbe033